Cogmind - Beta 11 X8 @@@ ROGUE MODE // 2021.11.05 @ 21:45:21 Player: Runia Result: Self-destructed Performance ------------- Evolutions (3) 1500 Regions Visited (10) 2000 Robots Destroyed (158) 790 Value Destroyed (4032) 4032 Prototype IDs (27) 540 Alien Tech Used (0) 0 Bonus (-2310) -2310 TOTAL SCORE: 6552 Bonus ------- High Alert Combat Kills 140 Follower Combat Kills 339 Friendly Fire -2789 Cogmind --------- Core Integrity 544/700 Matter 16/300 Energy 790/790 System Corruption 5% Temperature Cool (0) Movement Walking (260) Ox2 Location -7/Lower Caves Parts ------- > --- POWER (1) -------- Improved Deuterium Engine > --- PROPULSION (4) --- Advanced Myomer Leg Combat Airjet > --- UTILITY (6) ------ High-capacity Storage Unit Advanced Energy Well Experimental Sensor Array Improved Signal Interpreter Advanced Weapon Cycler > --- WEAPON (2) ------- Improved Grenade Launcher > --- INVENTORY (20) --- Reinforced Fission Core Cooled Gravmag System Combat Antigrav System Coolant Injector Makeshift Trap Scanner Hardened Medium Armor Plating 01-MTF's Autohacker Advanced Component Analysis Suite System Purifier Thief Drone Bay (3/3) AS-neutralizer No. 17b Pulse Rifle Pulse Rifle Advanced Beam Rifle EM Pulse Cannon 8R-AWN's Boregun 8R-AWN's Boregun Molecular Deconstructor Ripper Peak State ------------ > --- POWER ------------ Reinforced Fission Core > --- PROPULSION ------- Titanium Leg Improved Carbon-fiber Leg Advanced Myomer Leg Advanced Myomer Leg > --- UTILITY ---------- Improved Cooling System High-capacity Storage Unit Advanced Energy Well Experimental Sensor Array Advanced Weapon Cycler Centrium Light Armor Plating > --- WEAPON ----------- Advanced Beam Rifle 8R-AWN's Boregun > --- INVENTORY -------- Improved Deuterium Engine Combat Airjet Cooled Gravmag System Combat Antigrav System Experimental Heat Sink Gravity Neutralizing Apparatus Makeshift Trap Scanner 01-MTF's Autohacker Advanced Component Analysis Suite System Purifier Thief Drone Bay AS-neutralizer No. 17b Pulse Rifle Pulse Rifle Advanced Beam Rifle 8R-AWN's Boregun Improved Grenade Launcher Ripper [Rating: 92] Favorites ----------- Power Reinforced Fission Core Engine Heavy Ion Engine Power Core Reinforced Fission Core Reactor Cold Fusion Reactor Propulsion Advanced Myomer Leg Treads Light Treads Leg Advanced Myomer Leg Wheel Compact Wheel Hover Unit Combat Airjet Utility High-capacity Storage Unit Device Advanced Weapon Cycler Storage High-capacity Storage Unit Processor Improved Targeting Computer Hackware Hacking Suite Protection Medium Armor Plating Weapon Advanced Beam Rifle Energy Gun Advanced Beam Rifle Ballistic Gun Heavy Assault Rifle Launcher Grenade Launcher Slashing Weapon Ripper Build | -11 -10 -10 -9 -9 -9 -8 -8 -8 -7 -7 ------- Run | Scr Mat Min Mat Min Exi Min Mat Sto Fac Low Slots Evolved 6 | . . . 2 . . . 2 . 2 . Power . | . . . . . . . . . . . Propulsion 2 | . . . . . . . 1 . 1 . Utility 4 | . . . 2 . . . 1 . 1 . Weapon . | . . . . . . . . . . . Parts Attached 205 | 2 21 12 24 6 31 2 29 44 18 16 Power 9 | . 1 . 2 . 3 . . 2 1 . Engine 5 | . 1 . 2 . . . . 1 1 . Core 3 | . . . . . 2 . . 1 . . Reactor 1 | . . . . . 1 . . . . . Propulsion 29 | 2 7 3 5 . 3 . 5 1 1 2 Treads 11 | 2 5 . 3 . . . . . . 1 Leg 13 | . . 1 2 . 3 . 5 1 1 . Wheel 4 | . 2 2 . . . . . . . . Hover 1 | . . . . . . . . . . 1 Flight . | . . . . . . . . . . . Utility 64 | . 4 2 4 2 14 2 11 15 4 6 Device 38 | . 2 1 . 2 12 1 6 7 2 5 Storage 3 | . 1 . . . 1 . . 1 . . Processor 5 | . . . 1 . 1 . 2 . 1 . Hackware 1 | . . . . . . . . 1 . . Protection 17 | . 1 1 3 . . 1 3 6 1 1 Artifact . | . . . . . . . . . . . Weapon 103 | . 9 7 13 4 11 . 13 26 12 8 Energy Gun 39 | . 5 . 5 2 . . 6 12 6 3 Energy Cannon . | . . . . . . . . . . . Ballistic Gun 30 | . 2 4 5 . 7 . 4 5 1 2 Ballistic Cannon . | . . . . . . . . . . . Launcher 24 | . 2 3 3 2 2 . 2 7 1 2 Special Weapon . | . . . . . . . . . . . Impact Weapon . | . . . . . . . . . . . Slashing Weapon 10 | . . . . . 2 . 1 2 4 1 Piercing Weapon . | . . . . . . . . . . . Special Melee Weapon . | . . . . . . . . . . . Unidentified Prototypes 17 | . . 1 2 . 8 . 1 4 1 . Parts Lost 16 | . . 2 2 . 1 . 1 4 . 6 Power . | . . . . . . . . . . . Propulsion 4 | . . 1 . . . . . . . 3 Utility 7 | . . . 1 . 1 . 1 2 . 2 Weapon 5 | . . 1 1 . . . . 2 . 1 Highest Loss Streak 4 | . . 1 1 . 1 . 1 3 . 4 Average Slot Usage (%) 98 | . 97 99 99 100 99 100 97 98 100 98 Engine 5 | . 14 14 11 11 5 . . 2 . 7 Core 4 | . . . . . 5 11 9 6 6 . Treads 3 | . 18 5 11 . . . . . . 2 Leg 20 | . . 8 6 22 22 22 25 27 30 25 Wheel 1 | . 9 14 3 . . . . . . . Device 13 | . 10 . . 10 16 12 19 16 18 14 Storage 11 | . 14 14 11 11 11 11 9 9 15 15 Processor 6 | . . . 10 11 11 11 5 5 4 7 Protection 9 | . 1 14 21 11 5 9 10 12 7 7 Energy Gun 12 | . 19 . 10 22 3 . 16 15 12 12 Ballistic Gun 6 | . 8 27 10 . 14 22 1 1 . 1 Naked Turns . | . . . . . . . . . . . Heaviest Build 85 | 11 36 36 47 44 71 75 78 85 80 81 Greatest Support 95 | 40 40 16 40 34 72 72 77 77 95 95 Greatest Overweight (x) 14 | . 2 2 14 1 1 1 1 1 . 2 Average Overweight (x) . | . . 2 1 1 . . . . . . Largest Inventory Capacity 20 | 8 15 15 15 15 20 20 20 20 20 20 Average Capacity 17 | 8 12 15 15 15 15 20 20 20 20 20 Most Carried 20 | 5 15 15 15 15 20 20 20 20 20 20 Average Carried 16 | 2 7 14 14 14 14 20 19 19 19 19 Final Capacity 20 | 8 15 15 15 15 20 20 20 20 20 20 Final Carried 20 | 1 15 15 15 15 20 20 20 20 20 20 Class Distribution -------------------- 75% | Mutant 12% | Scavenger-Mutant 6% | Commander-Mutant 5% | Scavenger-Skirmisher Dominant Class ---------------- Mutant | -10/Materials Mutant | -10/Mines Mutant | -9/Materials Mutant | -9/Mines Mutant | -9/Exiles Mutant | -8/Mines Mutant | -8/Materials Mutant | -8/Storage Scavenger-Mutant | -7/Factory Scavenger-Skirmisher | -7/Lower Caves Resources | -11 -10 -10 -9 -9 -9 -8 -8 -8 -7 -7 ----------- Run | Scr Mat Min Mat Min Exi Min Mat Sto Fac Low Matter Collected 4051 | 200 414 283 497 138 865 48 455 688 213 250 Remotely . | . . . . . . . . . . . Salvage Created 6078 | . 497 439 710 174 567 48 1256 1468 640 279 Parts 316 | . 28 20 50 12 22 2 58 80 33 11 Haulers Intercepted 14 | . 2 . . . . . 4 6 2 . Recyclers Shooed 8 | . 2 2 . . . . 1 2 1 . Parts Field Recycled . | . . . . . . . . . . . Retrieved Matter . | . . . . . . . . . . . Parts Self-Destructed 9 | . . . . . . . . . . 9 Prevented . | . . . . . . . . . . . Kills | -11 -10 -10 -9 -9 -9 -8 -8 -8 -7 -7 ------- Run | Scr Mat Min Mat Min Exi Min Mat Sto Fac Low Combat Hostiles Destroyed 104 | . 10 9 21 8 6 1 18 20 6 5 Melee 1 | . . . . . 1 . . . . . Guns 64 | . 6 4 15 4 . 1 13 15 3 3 AOE 35 | . 4 5 6 4 5 . 4 3 2 2 Classes Destroyed 20 | . 5 2 2 . 3 1 2 3 . 2 Worker 8 | . 1 . 1 . . . 1 3 2 . Builder 8 | . . 1 . . . . . 1 6 . Tunneler 1 | . . . 1 . . . . . . . Hauler 14 | . 2 . . . . . 4 6 2 . Recycler 9 | . . 2 . 1 . . 3 1 2 . Mechanic 1 | . . . . . . . 1 . . . Operator 1 | . . . . . . . 1 . . . Turret 1 | . . . . . 1 . . . . . Watcher 7 | . 2 . 2 . . . 2 . 1 . Swarmer 32 | . 3 3 8 8 . . 6 4 . . Grunt 41 | . 7 6 8 . . . 5 7 6 2 Brawler 1 | . . . . . . . . . . 1 Sentry 13 | . . . 5 . . . 5 3 . . Demolisher 1 | . . . . . . . . 1 . . Specialist 6 | . . . . . . . . 5 . 1 Hunter 3 | . . . . . . 1 2 . . . Heavy 1 | . . . . . . . . 1 . . Behemoth 1 | . . . . . . . . . . 1 Zionite 8 | . . . . . 8 . . . . . Assembled 5 | . . . . . 5 . . . . . Best Kill Streak 10 | . 3 3 7 4 5 1 10 4 9 3 Combat Bots Only 8 | . 3 3 7 4 5 1 8 4 2 3 Max Kills in Single Turn 4 | . 2 2 3 3 2 1 2 1 4 1 Gunslinging 1 | . . . . 1 . . . . . . Exploded 3 | . 2 2 3 3 2 . 2 1 2 1 Melee 1 | . . . . . 1 . . . . . Uniques/NPCs Destroyed 5 | . . . . . 4 . . 1 . . 8R-AWN (-9/Exiles) EX-HEX (-9/Exiles) EX-BIN (-9/Exiles) EX-DEC (-9/Exiles) 01-MTF (-8/Storage) Combat | -11 -10 -10 -9 -9 -9 -8 -8 -8 -7 -7 -------- Run | Scr Mat Min Mat Min Exi Min Mat Sto Fac Low Damage Taken 5514 | . 322 449 858 118 279 135 896 1040 295 1122 Core 898 | . 70 87 174 16 15 23 156 201 28 128 Absorbed by Shields . | . . . . . . . . . . . Core Remaining (%) 53 | 100 . 37 . . . 43 . 35 . . Volleys Fired 587 | . 55 38 71 8 101 6 92 141 42 33 Largest 2 | . 2 2 2 2 1 2 2 2 2 2 Hottest 122 | . 80 40 112 112 30 46 122 122 122 122 Shots Fired 1027 | . 104 69 134 14 101 12 181 271 83 58 Gun 981 | . 100 62 128 12 95 12 178 262 82 50 Cannon . | . . . . . . . . . . . Launcher 46 | . 4 7 6 2 6 . 3 9 1 8 Special . | . . . . . . . . . . . Kinetic 378 | . 20 62 94 . 95 12 14 31 10 40 Thermal 596 | . 76 . 34 12 . . 164 231 69 10 Explosive 46 | . 4 7 6 2 6 . 3 9 1 8 Electromagnetic 7 | . 4 . . . . . . . 3 . Robot Hit Streak 21 | . 9 9 21 6 7 8 10 10 5 6 Robot Miss Streak 7 | . 5 2 4 2 4 1 5 7 5 2 Penetration Max 1 | . . . . . 1 . . 1 1 . Secondary Targets 8 | . 1 1 2 2 . . 1 . . 1 Max Gunslinging Chain 1 | . 1 1 1 1 . . 1 . . 1 Shots Hit Robots 633 | . 66 49 97 10 60 10 101 153 49 38 Core Hits 284 | . 29 28 50 10 29 3 37 52 25 21 Critical Kills 13 | . . . 1 . 8 . 1 3 . . Critical Parts Destroyed 28 | . . . . . 10 . 1 6 3 8 Critical Strikes 77 | . . . 3 3 19 . 13 21 5 13 Burn 30 | . . . 2 3 . . 11 12 2 . Destroy 47 | . . . 1 . 19 . 2 9 3 13 Melee Attacks 35 | . . . . . 20 . 2 4 8 1 Impact . | . . . . . . . . . . . Slashing 35 | . . . . . 20 . 2 4 8 1 Piercing . | . . . . . . . . . . . Sneak Attacks 1 | . . . . . . . . . 1 . Combat Hostiles . | . . . . . . . . . . . Follow-up Attacks . | . . . . . . . . . . . Damage Inflicted 14048 | . 895 692 1576 363 1641 123 2442 3347 1751 1218 Guns 9581 | . 674 372 1017 135 672 123 2025 2862 1039 662 Cannons . | . . . . . . . . . . . Explosions 3723 | . 221 320 559 228 360 . 417 485 577 556 Melee 744 | . . . . . 609 . . . 135 . Ramming . | . . . . . . . . . . . Kinetic 2893 | . 87 372 554 . 672 123 91 355 117 522 Thermal 6644 | . 545 . 463 135 . . 1934 2507 920 140 Explosive 3663 | . 221 320 559 228 360 . 417 485 517 556 Electromagnetic 104 | . 42 . . . . . . . 62 . Impact . | . . . . . . . . . . . Slashing 744 | . . . . . 609 . . . 135 . Piercing . | . . . . . . . . . . . Highest Corruption 5 | . . . 1 1 1 1 1 1 . 5 Average Corruption 1 | . . . 1 1 1 1 1 1 . 1 Corruption Purged 2 | . . . . . . . 1 1 . . Effects 9 | . . . 1 2 5 1 . . . . Message Errors 4 | . . . . 1 2 1 . . . . Energy Discharges 4 | . . . . 1 3 . . . . . Weapon Failures 1 | . . . 1 . . . . . . . Overload Shots . | . . . . . . . . . . . Overflow Damage 178 | . . 8 9 . 21 . 42 . 98 . Projectiles . | . . . . . . . . . . . Explosions 103 | . . 8 9 . 21 . 42 . 23 . Melee 75 | . . . . . . . . . 75 . Knockbacks . | . . . . . . . . . . . Impact . | . . . . . . . . . . . Kinetic . | . . . . . . . . . . . Secondary . | . . . . . . . . . . . Self-Inflicted Damage 257 | . . 84 . . 71 . . . 62 40 Shots 8 | . . 3 . . 3 . . . 1 1 Rammed . | . . . . . . . . . . . Targets Rammed . | . . . . . . . . . . . Kicked . | . . . . . . . . . . . Crushed . | . . . . . . . . . . . Highest Temperature 382 | . 264 82 301 72 120 94 382 284 212 250 Average Temperature 70 | . 72 20 81 36 39 51 87 73 56 131 Received Heat Transfer 1449 | . 162 198 270 . . . 315 117 162 225 Effects 11 | . 1 . 1 . . . 8 1 . . Energy Bleed 2 | . . . 1 . . . . 1 . . Interference 8 | . 1 . . . . . 7 . . . Short Circuit 1 | . . . . . . . 1 . . . Siege Activations . | . . . . . . . . . . . Robots Corrupted . | . . . . . . . . . . . Combat Hostiles . | . . . . . . . . . . . Parts Fried . | . . . . . . . . . . . Impact Corruptions . | . . . . . . . . . . . Robots Melted 4 | . . . . . . . 1 2 1 . Combat Hostiles 4 | . . . . . . . 1 2 1 . Parts Melted 22 | . 1 . 1 1 . . 9 8 2 . Heat Transferred 15348 | . 1225 . 1147 518 . . 4366 5994 1839 259 Parts Sabotaged . | . . . . . . . . . . . Parts Stolen . | . . . . . . . . . . . Parts Stripped . | . . . . . . . . . . . Power Chain Reactions 1 | . . . . . . . . . 1 . Missiles Intercepted . | . . . . . . . . . . . Alert | -11 -10 -10 -9 -9 -9 -8 -8 -8 -7 -7 ------- Run | Scr Mat Min Mat Min Exi Min Mat Sto Fac Low Peak Influence 774 | . 240 239 460 376 . 45 496 616 774 . Initial 175 | . . 24 26 151 . . 17 148 175 . Average 300 | . 126 157 284 251 . 36 292 353 548 . Maximum Alert Level 3 | . 1 1 2 1 . . 2 2 3 . Low Security (%) 26 | 100 81 56 16 40 . 100 10 13 3 . Level 1 52 | . 18 43 72 59 . . 80 56 8 . Level 2 19 | . . . 10 . . . 8 30 70 . Level 3 2 | . . . . . . . . . 17 . Level 4 . | . . . . . . . . . . . Level 5 . | . . . . . . . . . . . High Security . | . . . . . . . . . . . Max Security . | . . . . . . . . . . . Squads Dispatched 20 | . 4 . 4 . . . 1 7 4 . Investigation 4 | . 1 . . . . . . . 3 . Extermination . | . . . . . . . . . . . Reinforcement 15 | . 3 . 4 . . . 1 6 1 . Assault . | . . . . . . . . . . . Garrison 1 | . . . . . . . . 1 . . Intercept . | . . . . . . . . . . . Construction Impeded 2 | . . . 1 . . . . 1 . . Haulers Reinforced 1 | . . . . . . . . . 1 . Active Scanning Responses . | . . . . . . . . . . . Cargo Convoy Interrupts . | . . . . . . . . . . . Stealth | -11 -10 -10 -9 -9 -9 -8 -8 -8 -7 -7 --------- Run | Scr Mat Min Mat Min Exi Min Mat Sto Fac Low Distress Signals 8 | . 1 . 3 . . . 2 1 1 . Communications Jammed 6 | . . . . . . . . 6 . . Distress Signals . | . . . . . . . . . . . Times Spotted 185 | . 20 11 33 8 19 1 29 40 15 9 Peak Tracking Total 9 | . 3 3 9 4 9 1 5 4 3 4 Tactical Retreats 13 | . 1 . 1 . 4 . 2 . 5 . Traps | -11 -10 -10 -9 -9 -9 -8 -8 -8 -7 -7 ------- Run | Scr Mat Min Mat Min Exi Min Mat Sto Fac Low Traps Triggered 10 | . 4 . 3 . . . 1 2 . . Indirectly . | . . . . . . . . . . . Trap Hack Attempts . | . . . . . . . . . . . Triggered . | . . . . . . . . . . . Disarmed . | . . . . . . . . . . . Reprogrammed . | . . . . . . . . . . . Reused . | . . . . . . . . . . . Traps Extracted . | . . . . . . . . . . . Installed . | . . . . . . . . . . . Triggered . | . . . . . . . . . . . Exploded 3 | . . . . . 3 . . . . . Machines | -11 -10 -10 -9 -9 -9 -8 -8 -8 -7 -7 ---------- Run | Scr Mat Min Mat Min Exi Min Mat Sto Fac Low Machines Disabled 43 | . . 1 1 4 12 . 7 4 13 1 Max in Single Turn 6 | . . 1 1 4 2 . 2 1 6 1 Garrison Access 3 | . . . . . . . 1 1 1 . Machines Sabotaged . | . . . . . . . . . . . Garrisons Compromised . | . . . . . . . . . . . Overloaded Fab Kills . | . . . . . . . . . . . Hacking | -11 -10 -10 -9 -9 -9 -8 -8 -8 -7 -7 --------- Run | Scr Mat Min Mat Min Exi Min Mat Sto Fac Low Machines Accessed 38 | . 5 2 4 . 1 . 10 8 8 . Terminals 22 | . 4 1 3 . . . 5 5 4 . Fabricators 3 | . . . . . . . . . 3 . Repair Stations 5 | . . . 1 . . . 2 2 . . Recycling Units 1 | . 1 . . . . . . . . . Scanalyzers 2 | . . . . . . . 2 . . . Garrison Access 3 | . . . . . . . 1 1 1 . Total Hacks 104 | . 11 2 14 . 1 . 34 21 21 . Successful 46 | . 8 1 1 . 1 . 18 10 7 . Failed 58 | . 3 1 13 . . . 16 11 14 . Catastrophic 7 | . . 1 1 . . . 2 . 3 . Database Lockouts . | . . . . . . . . . . . Manual 34 | . 3 1 7 . . . 12 7 3 1 Terminals 68 | . 10 1 11 . . . 20 15 11 . Fabricators 7 | . . . . . . . . . 7 . Repair Stations 16 | . . . 3 . . . 8 5 . . Recycling Units 1 | . 1 . . . . . . . . . Scanalyzers 5 | . . . . . . . 5 . . . Garrison Access 5 | . . . . . . . 1 1 3 . Terminal Hacks 26 | . 7 1 . . 1 . 8 5 4 . Record 1 | . . . . . 1 . . . . . Part Schematic 2 | . . . . . . . . 1 1 . Robot Schematic 1 | . . . . . . . 1 . . . Robot Analysis 2 | . 2 . . . . . . . . . Prototype ID Bank 3 | . 1 . . . . . 2 . . . Open Door 1 | . . 1 . . . . . . . . Branch Access Points 1 | . . . . . . . 1 . . . Terminal Index 3 | . 1 . . . . . 2 . . . Alert Level 1 | . . . . . . . . 1 . . Unreport Threat 2 | . . . . . . . . 2 . . Locate Traps 4 | . 1 . . . . . . 1 2 . Hauler Manifests 4 | . 1 . . . . . 2 . 1 . Zone Layout 1 | . 1 . . . . . . . . . Fabricator Hacks 2 | . . . . . . . . . 2 . Load Schematic 1 | . . . . . . . . . 1 . Build 1 | . . . . . . . . . 1 . Repair Station Hacks 12 | . . . 1 . . . 7 4 . . Scan Component 7 | . . . 1 . . . 4 2 . . Repair 5 | . . . . . . . 3 2 . . Recycling Unit Hacks . | . . . . . . . . . . . Scanalyzer 2 | . . . . . . . 2 . . . Insert Component 1 | . . . . . . . 1 . . . Analyze 1 | . . . . . . . 1 . . . Garrison Access Hacks 2 | . . . . . . . 1 1 . . Seal Access 2 | . . . . . . . 1 1 . . Unauthorized Hacks 2 | . 1 . . . . . . . 1 . Terminals . | . . . . . . . . . . . Fabricators . | . . . . . . . . . . . Repair Stations . | . . . . . . . . . . . Recycling Units 1 | . 1 . . . . . . . . . Tunnel 1 | . 1 . . . . . . . . . Scanalyzers . | . . . . . . . . . . . Garrison Access 1 | . . . . . . . . . 1 . Jam 1 | . . . . . . . . . 1 . Data Cores Recovered . | . . . . . . . . . . . Used . | . . . . . . . . . . . Hacking Detections 30 | . 3 1 4 . . . 8 7 7 . Full Trace Events 3 | . . . . . . . 1 . 2 . Feedback Events . | . . . . . . . . . . . Feedback Blocked . | . . . . . . . . . . . Robot Schematics Acquired 1 | . . . . . . . 1 . . . Robots Built . | . . . . . . . . . . . Authchips . | . . . . . . . . . . . Time . | . . . . . . . . . . . Total Robot Build Rating . | . . . . . . . . . . . Part Schematics Acquired 2 | . . . . . . . . 1 1 . Parts Built 1 | . . . . . . . . . 1 . Authchips . | . . . . . . . . . . . Time 73 | . . . . . . . . . 73 . Total Part Build Rating 3 | . . . . . . . . . 3 . Parts Repaired 4 | . . . . . . . 3 1 . . Time 383 | . . . . . . . 251 132 . . Parts Recycled . | . . . . . . . . . . . Recycled Matter . | . . . . . . . . . . . Retrieved Matter . | . . . . . . . . . . . Retrieved Components . | . . . . . . . . . . . Parts Scanalyzed 1 | . . . . . . . 1 . . . Part Schematics Acquired . | . . . . . . . . . . . Parts Damaged . | . . . . . . . . . . . Bothacking | -11 -10 -10 -9 -9 -9 -8 -8 -8 -7 -7 ------------ Run | Scr Mat Min Mat Min Exi Min Mat Sto Fac Low Used RIF Installer . | . . . . . . . . . . . Robots Hacked . | . . . . . . . . . . . Non-combat . | . . . . . . . . . . . Combat . | . . . . . . . . . . . Robot Hacks Applied . | . . . . . . . . . . . Relay Couplers Released 3 | . . . . . . . 3 . . . Machine Destruction 3 | . . . . . . . 3 . . . Robots Rewired . | . . . . . . . . . . . Allies Hacked . | . . . . . . . . . . . Hacks Repelled . | . . . . . . . . . . . Allies | -11 -10 -10 -9 -9 -9 -8 -8 -8 -7 -7 -------- Run | Scr Mat Min Mat Min Exi Min Mat Sto Fac Low Total Allies 13 | . . . . 2 . . . 11 . . Largest Group 10 | . . . . 2 1 . . 10 . . Highest-Rated Group 173 | . . . . 50 19 . . 173 . . Highest-Rated Ally 100 | . . . . 31 19 . . 100 . . Total Orders 2 | . . . . . 2 . . . . . RETURN 2 | . . . . . 2 . . . . . Ally Attacks 204 | . . . . 3 102 . . 99 . . Total Damage 2078 | . . . . . 779 . . 1299 . . Kills 17 | . . . . . 3 . . 14 . . Allies Corrupted . | . . . . . . . . . . . Allies Melted . | . . . . . . . . . . . Intel | -11 -10 -10 -9 -9 -9 -8 -8 -8 -7 -7 ------- Run | Scr Mat Min Mat Min Exi Min Mat Sto Fac Low Robot Analysis Total 2 | . 2 . . . . . . . . . Derelict Logs Recovered 3 | . . 2 . 1 . . . . . . Drone Launches 23 | . . . . . 23 . . . . . Drone Recoveries 23 | . . . . . 23 . . . . . Exploration | -11 -10 -10 -9 -9 -9 -8 -8 -8 -7 -7 ------------- Run | Scr Mat Min Mat Min Exi Min Mat Sto Fac Low Turns Passed 10645 | 10 937 478 1098 672 1810 142 1737 1888 960 913 Spaces Moved 5116 | 3 563 275 409 320 885 66 780 764 586 465 Core 1 | . . . 1 . . . . . . . Treads 299 | 3 133 . 163 . . . . . . . Legs 3953 | . . . 87 320 885 66 780 764 586 465 Wheels 863 | . 430 275 158 . . . . . . . Hover . | . . . . . . . . . . . Flight . | . . . . . . . . . . . Fastest Speed 100 | 160 100 130 130 200 120 120 123 123 122 120 Average Speed 149 | 160 126 130 190 200 153 178 140 161 122 136 Slowest Speed 750 | 160 160 130 750 200 200 190 196 196 122 260 Overloaded Moves . | . . . . . . . . . . . Propulsion Burnouts . | . . . . . . . . . . . Robots Hopped . | . . . . . . . . . . . Cave-ins Triggered . | . . . . . . . . . . . Exploration Rate (%) 54 | 2 84 65 51 82 78 19 63 95 17 48 Regions Visited 10 Branch Regions 6 Pre-discovered Areas 2 | . 1 . . . 1 . . . . . Known Exits Taken 2 | . . . . . . . 1 . 1 . Unknown Exits Taken 8 | 1 1 1 1 1 1 1 . 1 . . Scrap Searched 3 | . . 1 . 1 . . . . . 1 Spaces Dug 67 | . . . 7 . 24 . 6 23 7 . Terrain Destroyed 429 | . 6 47 36 11 62 . 50 90 79 48 Melee 11 | . . . . . . . 2 2 7 . Projectile 57 | . . . . . 39 . 2 12 1 3 AOE 358 | . 6 47 36 11 21 . 46 76 71 44 Terrain Rammed . | . . . . . . . . . . . Walls Destroyed . | . . . . . . . . . . . Machines Disabled . | . . . . . . . . . . . Actions | -11 -10 -10 -9 -9 -9 -8 -8 -8 -7 -7 --------- Run | Scr Mat Min Mat Min Exi Min Mat Sto Fac Low Total 7265 | 11 683 336 612 337 1245 82 1298 1207 759 695 Wait 1146 | . 9 6 82 1 169 9 368 229 97 176 Move 5106 | 2 562 274 408 319 884 65 779 763 585 465 Hop . | . . . . . . . . . . . Pick Up 87 | 1 22 2 10 1 19 . 12 14 4 2 Fast Attach 35 | . 11 2 6 . . . 8 5 2 1 Attach 30 | 2 2 1 5 . 5 . 4 7 2 2 Detach 1 | . . . 1 . . . . . . . Swap 140 | . 8 9 13 6 26 2 17 32 14 13 Drop 98 | 6 14 4 16 2 21 . 16 12 5 2 Fire 587 | . 55 38 71 8 101 6 92 141 42 33 Melee 35 | . . . . . 20 . 2 4 8 1 Ram . | . . . . . . . . . . . Kick . | . . . . . . . . . . . Crush . | . . . . . . . . . . . Escape Stasis . | . . . . . . . . . . . Rewire . | . . . . . . . . . . . Trap . | . . . . . . . . . . . Miscellaneous . | . . . . . . . . . . . Route ------- -11/Scrapyard -10/Materials (discovered 4 exits: *Mat x2 / *Min x2) -10/Mines (discovered 2 exits: *Mat x2) -9/Materials (discovered 3 exits: *Mat x2 / [*Min]) -9/Mines (discovered 2 exits: *Mat / *Exi) -9/Exiles -8/Mines -8/Materials (discovered 4 exits: *Fac x2 / *Sto x2) -8/Storage -7/Factory -7/Lower Caves History --------- Turn | Location | Event 7 | -11/Scrapyard | Discovered new exit (range 3) 11 | -11/Scrapyard | Entered Materials 239 | -10/Materials | Discovered new exit (range 16) 304 | -10/Materials | Build established: Mutant 690 | -10/Materials | Discovered new exit (range 15) 702 | -10/Materials | Discovered new exit (range 15) 819 | -10/Materials | Discovered new exit (range 14) 948 | -10/Materials | Entered Mines 980 | -10/Mines | A weapon hastily lodged in a ceiling crevice suddenly fell to the ground 1009 | -10/Mines | Discovered new exit (range 9) 1077 | -10/Mines | Learned Materials terminal intel 1138 | -10/Mines | Core integrity fell below 50% 1157 | -10/Mines | Learned Materials emergency access door positions 1222 | -10/Mines | Found a damaged Exp. Sensor Array with a note attached 1227 | -10/Mines | Found Prototype Device 1271 | -10/Mines | Found the Drone Emporium 1277 | -10/Mines | Found Prototype Device 1277 | -10/Mines | Identified Thief Drone Bay 1410 | -10/Mines | Discovered new exit (range 6) 1426 | -10/Mines | Entered Materials 1426 | -9/Materials | Evolved 2 slots: Utility x2 1428 | -9/Materials | Loaded intel: 11 terminal locations 1551 | -9/Materials | Destroyed 7 combat bots 1755 | -9/Materials | Discovered new exit (range 6) 2154 | -9/Materials | Discovered new exit (range 5) 2388 | -9/Materials | Discovered new exit (range 8) 2524 | -9/Materials | Entered Mines 2615 | -9/Mines | Discovered new exit (range 14) 2991 | -9/Mines | Learned Materials terminal intel 3186 | -9/Mines | Deemed a non-threat by the Exiles lab entrance 3186 | -9/Mines | Discovered new exit (range 5) 3196 | -9/Mines | Entered Exiles 3196 | -9/Exiles | Accompanied by 1 ally 3244 | -9/Exiles | Met 8R-AWN 3278 | -9/Exiles | Met EX-HEX 3358 | -9/Exiles | Met EX-DEC 3374 | -9/Exiles | Learned location of Zion (-6) 3821 | -9/Exiles | Attacked by the Exiles 3926 | -9/Exiles | Core integrity fell below 50% 4016 | -9/Exiles | Identified Exp. Sensor Array 4018 | -9/Exiles | Found AS-neutralizer No. 17b 4030 | -9/Exiles | Destroyed 8R-AWN 4108 | -9/Exiles | Found 8R-AWN's Boregun 4109 | -9/Exiles | Found 8R-AWN's Boregun 4599 | -9/Exiles | Allies destroyed EX-HEX 4601 | -9/Exiles | Allies destroyed EX-BIN 4615 | -9/Exiles | Allies destroyed EX-DEC 4626 | -9/Exiles | Found Prototype Device 4627 | -9/Exiles | Identified System Purifier 4996 | -9/Exiles | Discovered new exit (range 10) 5006 | -9/Exiles | Entered Mines 5129 | -8/Mines | Discovered new exit (range 13) 5148 | -8/Mines | Entered Materials 5148 | -8/Materials | Evolved 2 slots: Propulsion x1, Utility x1 5149 | -8/Materials | Loaded intel: 12 terminal locations 5426 | -8/Materials | Destroyed 8 combat bots 5560 | -8/Materials | Repaired Adv. Myomer Leg 5766 | -8/Materials | Discovered new exit (range 11) 6129 | -8/Materials | Repaired Adv. Myomer Leg 6199 | -8/Materials | Repaired Broken Titanium Leg 6768 | -8/Materials | Identified exit to Storage 6774 | -8/Materials | Discovered new exit (range 10) 6885 | -8/Materials | Entered Storage 7083 | -8/Storage | Assisted by bots powering up and referring to "LRC-V3" 7396 | -8/Storage | Build established: Commander-Mutant 7475 | -8/Storage | Repaired Broken Adv. Myomer Leg 7517 | -8/Storage | Garrison activated, responded to threat 7685 | -8/Storage | Discovered new exit (range 16) 8034 | -8/Storage | Core integrity fell below 50% 8048 | -8/Storage | Build established: Mutant 8151 | -8/Storage | Lost 3 parts (2u1w) 8598 | -8/Storage | Met 01-MTF 8728 | -8/Storage | Destroyed 01-MTF 8742 | -8/Storage | Found Prototype Device 8742 | -8/Storage | Identified 01-MTF's Autohacker 8773 | -8/Storage | Entered Factory 8773 | -7/Factory | Evolved 2 slots: Propulsion x1, Utility x1 9042 | -7/Factory | Build established: Scavenger-Mutant 9099 | -7/Factory | Discovered new exit (range 12) 9174 | -7/Factory | Identified exit to Lower Caves 9600 | -7/Factory | Fabricated Hrd. Medium Armor Plating (x1) 9733 | -7/Factory | Entered Lower Caves 10034 | -7/Lower Caves | Build established: Scavenger-Skirmisher 10311 | -7/Lower Caves | Spotted B-75 Beast 10417 | -7/Lower Caves | Destroyed B-75 Beast 10479 | -7/Lower Caves | Acquired the password to a Derelict Tinkerer's latest research 10497 | -7/Lower Caves | Found Prototype Special Weapon 10636 | -7/Lower Caves | Caught by Unaware searching for contraband prototypes 10643 | -7/Lower Caves | Caught by Unaware searching for contraband prototypes 10646 | -7/Lower Caves | Self-destructed Last Messages --------------- 10605_ Acquired 39 matter. 10611_ Penetrated by Slug. 10613_ Imp. Cooling System destroyed. 10616_ Adv. Beam Rifle destroyed. 10616_ Penetrated by Slug. 10635_ Slug penetrates Earth. 10636_ X-62 Marksman: "CONFIRMED SUSPICIOUS DERELICT. COMMENCE PROTOTYPE CONTRABAND SEARCH." 10637_ X-72 Disruptor destroyed. 10638_ Penetrated by Slug. 10640_ The unstable cave ceiling collapses. 10642_ Adv. Myomer Leg destroyed. 10642_ Penetrated by Slug. 10643_ P-70 Sage: "CONFIRMED SUSPICIOUS DERELICT. COMMENCE PROTOTYPE CONTRABAND SEARCH." 10643_ Mic. Fission Core fries itself beyond repair. 10643_ Arm. Treads destroyed. 10644_ The unstable cave ceiling collapses. 10644_ Penetrated by Slug. 10645_ The unstable cave ceiling collapses. Map ----- +----------------------------------------------------+ | ?????????????????????????????????????????????????? | | ?????????????????????????????????????????????????? | | ?????????????????????????????????????????????????? | | ?????????????????????????????????????????????????? | | ?????????????????????????????????????????????????? | | ?????????????????????????????????????????????????? | | ?????????????????????????????????????????????????? | | ?????????????????????????????????????????????????? | | ?????????????????????????????????????????????????? | | ?????????????????????????????????????????????????? | | ?????????????????????????????????????????????????? | | ?????????????????????????????????????????????????? | | ??????????????????????????????????#??????????????? | | ?????????????????????????????????? ##??#?? ??????? | | ?????????????????????????????????? ## #? ???????? | | ?????????????????????????????????? # # ????????? | | ?????????????????????????????????? ?????????? | | ??????????????????????????##?????? ??????????? | | ??????????????????????????? ###### #???????????? | | ???????????????????????????? ## #????????????? | | ????????????????????????????# #????????????? | | ???????????#######??????????# ###??????????? | | ??????????? ??????### ##?????????? | | ??????????? ###### x #?????????? | | ?????????????"" % ##?????????? | | ???????????????" "" @ ! #??????????? | | ??????????????" "" $# #### x #?????????? | | ????????????????????#?????# #?????????? | | ??????????????????????????## ## #????????? | | ??????????????????????????# % #????????? | | ??????????????????????????# #p h #????????? | | ??????????????????????##??# ## ##???####?? | | ??????????????????????# ### ##?###??### ?? | | ??????????????????????# #??????# #?? | | ??????????????????????## ###?????# #?? | | ???????????????????????# # ##????# #?? | | ???????????????????????# ##???# ### | | ???????????????????????# #??## ## | | ???????????????????????#### #?## | | ??????????????????????????#h ##?# | | ??????????????????????????# #??# | | ?????????????????????????## #??## | | ?????????????????????????# # #???# | | ?????????????????????????# #### ### ##### | | ?????????????????????????# #??# ### ## | | ?????????????????????????# #??# ## | | ?????????????????????????# ########### ### | | ????????????????????????## #####??## #?# | | ??????????????????????### ###?##### ##?? | | ?????????????????????## ### ####??####### | +----------------------------------------------------+ Best States ------------- Heat Dissipation 84 Coolant Potential 50 Energy Generation 19 Energy Capacity 810 Matter Stores 300 Matter Capacity 300 Sight Range 16 Robot Scan Range 20 Terrain Scan Density 10 Jamming Range 8 Additional Mass Support 12 Armor Coverage 450 Resistance: KI 20 Weapon Cycling 25 Evasion (%) 55 Targeting Accuracy 8 Target Analysis 6 Armor Integrity Analysis 20 Recoil Reduction 2 Offensive Hacking 10 Item Schematics ----------------- Hrd. Medium Armor Plating | -8/Storage | Hacked Adv. Cooling System | -7/Factory | Hacked Robot Schematics ------------------ M-28 Smith | -8/Materials | Hacked Fabricated ------------ Hrd. Medium Armor Plating | x1 | -7/Factory Alien Tech Used ----------------- None Achievements -------------- None Challenges ------------ None Game ------ Seed MicroCoolingDisintegrator Manual? 0 Play Time 01:28:22 Cumulative 440.1 hours Start 2021.11.04 @ 00:30:55 End 2021.11.05 @ 21:45:21 Sessions 5 Manual Loads 0 Difficulty Rogue Special Mode None Game No. 437 Rogue 437 Adventurer 0 Explorer 0 Win Type - Total 8 Types 7/0/0/1/0/0/0/0/0 Lore% 80 Gallery% 92 Achievement% 69 Wizard Run 0 Options --------- ASCII 0 Keyboard 0 Movement Mouse Keybinds 1 Fullscreen 2 Font 24/Smallcaps Map View 76x50 Tactical HUD 1 Map Filters NONE Filters NONE Steam 1 RUN: 48cbd864-62e6-4d66-aab4-3d1ef3d831da